Cogmind - Beta 9.1 @@@ ROGUE MODE // 2019.11.05 @ 15:01:34 Player: cptwinky Result: Destroyed by D-53 Grenadier with Mini Grenade Launcher Performance ------------- Evolutions (0) 0 Regions Visited (2) 400 Robots Destroyed (9) 45 Value Destroyed (137) 137 Prototype IDs (0) 0 Alien Tech Used (0) 0 Bonus (0) 0 TOTAL SCORE: 582 Bonus ------- None Cogmind --------- Core Integrity 0/250 Matter 279/300 Energy 93/100 System Corruption 0% Temperature Cool (0) Location -10/Mines Parts ------- Power (1) Propulsion (2) Compact Wheel Utility (2) Heat Sink Small Storage Unit Weapon (2) Inventory (6) Ion Engine Light Treads Assault Rifle Light Assault Rifle Mining Laser Peak State ------------ Power Ion Engine Propulsion Light Treads Wheel Utility Small Storage Unit Power Shielding Weapon Assault Rifle Light Assault Rifle Inventory Ion Engine Light Treads Compact Wheel Assault Rifle [Rating: 7] Favorites ----------- Power Ion Engine Engine Ion Engine Propulsion Wheel Treads Light Treads Wheel Wheel Utility Small Storage Unit Device Heat Sink Storage Small Storage Unit Protection Power Shielding Weapon Assault Rifle Ballistic Gun Assault Rifle Launcher Grenade Launcher Build | -11 -10 -10 ------- Run | Scr Mat Min Slots Evolved . | . . . Power . | . . . Propulsion . | . . . Utility . | . . . Weapon . | . . . Parts Attached 11 | 6 1 4 Power 1 | 1 . . Engine 1 | 1 . . Core . | . . . Reactor . | . . . Propulsion 3 | 2 . 1 Treads 1 | 1 . . Leg . | . . . Wheel 2 | 1 . 1 Hover . | . . . Flight . | . . . Utility 3 | 1 1 1 Device 1 | . . 1 Storage 1 | 1 . . Processor . | . . . Hackware . | . . . Protection 1 | . 1 . Artifact . | . . . Weapon 4 | 2 . 2 Energy Gun . | . . . Energy Cannon . | . . . Ballistic Gun 3 | 2 . 1 Ballistic Cannon . | . . . Launcher 1 | . . 1 Special Weapon . | . . . Impact Weapon . | . . . Slashing Weapon . | . . . Piercing Weapon . | . . . Special Melee Weapon . | . . . Unidentified Prototypes . | . . . Parts Lost 5 | . . 5 Power 1 | . . 1 Propulsion 2 | . . 2 Utility . | . . . Weapon 2 | . . 2 Highest Loss Streak 5 | . . 5 Average Slot Usage (%) 98 | . 96 98 Engine 13 | . 14 13 Treads 14 | . 14 14 Wheel 14 | . 14 14 Device 2 | . . 3 Storage 14 | . 14 14 Protection 10 | . 10 10 Ballistic Gun 27 | . 28 27 Naked Turns . | . . . Heaviest Build 13 | 12 13 13 Greatest Support 16 | 10 10 16 Greatest Overweight (x) 1 | 1 1 1 Average Overweight (x) . | . 1 . Largest Inventory Capacity 6 | 6 6 6 Average Capacity 5 | 5 6 6 Most Carried 6 | 5 5 6 Average Carried 5 | 2 4 5 Final Capacity 6 | 6 6 6 Final Carried 5 | 4 5 5 Class Distribution -------------------- 100% | Mutant Dominant Class ---------------- Mutant | -10/Materials Mutant | -10/Mines Resources | -11 -10 -10 ----------- Run | Scr Mat Min Matter Collected 366 | 268 . 98 Remotely . | . . . Salvage Created 271 | 97 . 174 Parts 13 | 1 . 12 Haulers Intercepted . | . . . Recyclers Shooed . | . . . Parts Field Recycled . | . . . Retrieved Matter . | . . . Parts Self-Destructed . | . . . Prevented . | . . . Kills | -11 -10 -10 ------- Run | Scr Mat Min Combat Hostiles Destroyed 8 | . . 8 Guns 8 | . . 8 Classes Destroyed 4 | 1 . 3 Recycler 1 | 1 . . Swarmer 5 | . . 5 Grunt 2 | . . 2 Assembled 1 | . . 1 Best Kill Streak 3 | 1 . 3 Combat Bots Only 3 | . . 3 Max Kills in Single Turn 1 | 1 . 1 Gunslinging . | . . . Exploded . | . . . Melee . | . . . Uniques/NPCs Destroyed . | . . . Combat | -11 -10 -10 -------- Run | Scr Mat Min Damage Taken 767 | . 22 745 Core 259 | . . 259 Absorbed by Shields . | . . . Core Remaining (%) 100 | 100 . . Volleys Fired 24 | 2 . 22 Largest 2 | 2 . 2 Hottest 40 | 40 . 40 Shots Fired 47 | 4 . 43 Gun 46 | 4 . 42 Cannon . | . . . Launcher 1 | . . 1 Special . | . . . Kinetic 46 | 4 . 42 Thermal . | . . . Explosive 1 | . . 1 Electromagnetic . | . . . Robot Hit Streak 8 | 4 . 8 Robot Miss Streak 4 | . . 4 Penetration Max . | . . . Secondary Targets 2 | . . 2 Max Gunslinging Chain 1 | . . 1 Shots Hit Robots 31 | 4 . 27 Core Hits 15 | 2 . 13 Critical Hits 2 | . . 2 Critical Kills 1 | . . 1 Critical Parts Destroyed 1 | . . 1 Melee Attacks . | . . . Impact . | . . . Slashing . | . . . Piercing . | . . . Sneak Attacks . | . . . Combat Hostiles . | . . . Follow-up Attacks . | . . . Damage Inflicted 356 | 39 . 317 Guns 326 | 39 . 287 Cannons . | . . . Explosions 30 | . . 30 Melee . | . . . Ramming . | . . . Kinetic 326 | 39 . 287 Thermal . | . . . Explosive 30 | . . 30 Electromagnetic . | . . . Impact . | . . . Slashing . | . . . Piercing . | . . . Highest Corruption . | . . . Average Corruption . | . . . Corruption Purged . | . . . Overload Shots . | . . . Overflow Damage . | . . . Projectiles . | . . . Explosions . | . . . Melee . | . . . Knockbacks . | . . . Impact . | . . . Kinetic . | . . . Secondary . | . . . Self-Inflicted Damage 37 | . . 37 Shots 1 | . . 1 Rammed . | . . . Targets Rammed . | . . . Kicked . | . . . Crushed . | . . . Highest Temperature 19 | . . 19 Average Temperature 10 | . . 10 Received Heat Transfer 127 | . 12 115 Siege Activations . | . . . Robots Corrupted . | . . . Combat Hostiles . | . . . Parts Fried . | . . . Impact Corruptions . | . . . Robots Melted . | . . . Combat Hostiles . | . . . Parts Melted . | . . . Heat Transferred . | . . . Parts Sabotaged . | . . . Parts Stolen . | . . . Parts Stripped . | . . . Power Chain Reactions . | . . . Missiles Intercepted . | . . . Alert | -11 -10 -10 ------- Run | Scr Mat Min Peak Influence 207 | 5 58 207 Average Influence 98 | 1 31 124 Maximum Alert Level 1 | . . 1 Low Security (%) 99 | . . . Level 1 . | . . . Level 2 . | . . . Level 3 . | . . . Level 4 . | . . . Level 5 . | . . . High Security . | . . . Max Security . | . . . Squads Dispatched 2 | . 2 . Investigation 2 | . 2 . Extermination . | . . . Reinforcement . | . . . Assault . | . . . Garrison . | . . . Intercept . | . . . Construction Impeded . | . . . Haulers Reinforced . | . . . Stealth | -11 -10 -10 --------- Run | Scr Mat Min Distress Signals 1 | . . 1 Communications Jammed . | . . . Distress Signals . | . . . Times Spotted 24 | . 2 22 Peak Tracking Total 5 | . 2 5 Tactical Retreats 4 | . . 4 Traps | -11 -10 -10 ------- Run | Scr Mat Min Traps Triggered . | . . . Indirectly . | . . . Trap Hack Attempts . | . . . Triggered . | . . . Disarmed . | . . . Reprogrammed . | . . . Reused . | . . . Traps Extracted . | . . . Installed . | . . . Triggered . | . . . Machines | -11 -10 -10 ---------- Run | Scr Mat Min Machines Disabled . | . . . Max in Single Turn . | . . . Machines Sabotaged . | . . . Garrisons Compromised . | . . . Overloaded Fab Kills . | . . . Fab Network Shutdowns . | . . . Hacking | -11 -10 -10 --------- Run | Scr Mat Min Machines Accessed 2 | . 2 . Terminals 1 | . 1 . Fabricators . | . . . Repair Stations . | . . . Recycling Units 1 | . 1 . Scanalyzers . | . . . Garrison Access . | . . . Total Hacks 9 | . 9 . Successful 5 | . 5 . Failed 4 | . 4 . Catastrophic . | . . . Database Lockouts . | . . . Manual 4 | . 4 . Terminals 7 | . 7 . Fabricators . | . . . Repair Stations . | . . . Recycling Units 2 | . 2 . Scanalyzers . | . . . Garrison Access . | . . . Terminal Hacks 3 | . 3 . Robot Analysis 2 | . 2 . Branch Access Points 1 | . 1 . Fabricator Hacks . | . . . Repair Station Hacks . | . . . Recycling Unit Hacks . | . . . Scanalyzer . | . . . Garrison Access Hacks . | . . . Unauthorized Hacks 4 | . 4 . Terminals 1 | . 1 . Botnet 1 | . 1 . Fabricators . | . . . Repair Stations . | . . . Recycling Units 1 | . 1 . Tunnel 1 | . 1 . Scanalyzers . | . . . Garrison Access . | . . . Data Cores Recovered . | . . . Used . | . . . Hacking Detections 2 | . 2 . Full Trace Events 1 | . 1 . Feedback Events . | . . . Feedback Blocked . | . . . Robot Schematics Acquired . | . . . Robots Built . | . . . Matter . | . . . Time . | . . . Total Robot Build Rating . | . . . Part Schematics Acquired . | . . . Parts Built . | . . . Matter . | . . . Time . | . . . Total Part Build Rating . | . . . Parts Repaired . | . . . Time . | . . . Parts Recycled . | . . . Recycled Matter . | . . . Retrieved Matter . | . . . Retrieved Components . | . . . Parts Scanalyzed . | . . . Part Schematics Acquired . | . . . Parts Damaged . | . . . Bothacking | -11 -10 -10 ------------ Run | Scr Mat Min Used RIF Installer . | . . . Robots Hacked . | . . . Non-combat . | . . . Combat . | . . . Robot Hacks Applied . | . . . Relay Couplers Released . | . . . Robots Rewired . | . . . Allies Hacked . | . . . Hacks Repelled . | . . . Allies | -11 -10 -10 -------- Run | Scr Mat Min Total Allies . | . . . Largest Group . | . . . Highest-Rated Group . | . . . Highest-Rated Ally . | . . . Total Orders . | . . . Ally Attacks . | . . . Total Damage . | . . . Kills . | . . . Allies Corrupted . | . . . Allies Melted . | . . . Intel | -11 -10 -10 ------- Run | Scr Mat Min Robot Analysis Total 2 | . 2 . Derelict Logs Recovered . | . . . Drone Launches . | . . . Drone Recoveries . | . . . Exploration | -11 -10 -10 ------------- Run | Scr Mat Min Turns Passed 442 | 65 37 340 Spaces Moved 347 | 44 39 264 Core 2 | 2 . . Treads . | . . . Legs . | . . . Wheels 345 | 42 39 264 Hover . | . . . Flight . | . . . Fastest Speed 50 | 50 90 80 Average Speed 89 | 86 90 89 Slowest Speed 100 | 90 90 100 Overloaded Moves . | . . . Propulsion Burnouts . | . . . Robots Hopped . | . . . Cave-ins Triggered . | . . . Exploration Rate (%) 24 | 4 16 52 Regions Visited 2 Branch Regions 1 Pre-discovered Areas 1 | . 1 . Known Exits Taken 1 | . 1 . Unknown Exits Taken 1 | 1 . . Scrap Searched 1 | . . 1 Spaces Dug . | . . . Terrain Destroyed 10 | . . 10 Melee . | . . . Projectile . | . . . AOE 10 | . . 10 Actions | -11 -10 -10 --------- Run | Scr Mat Min Total 431 | 64 40 327 Wait 41 | 8 . 33 Move 345 | 43 38 264 Hop . | . . . Pick Up 8 | 5 1 2 Fast Attach 7 | 5 1 1 Attach 2 | 1 . 1 Detach . | . . . Swap 2 | . . 2 Drop 2 | . . 2 Fire 24 | 2 . 22 Melee . | . . . Ram . | . . . Kick . | . . . Crush . | . . . Escape Stasis . | . . . Rewire . | . . . Trap . | . . . Miscellaneous . | . . . Route ------- -11/Scrapyard -10/Materials -10/Mines (discovered 1 exit: [*Mat]) History --------- Turn | Location | Event 21 | -11/Scrapyard | Discovered new exit (range 15) 66 | -11/Scrapyard | Entered Materials 74 | -10/Materials | Identified exit to Mines 103 | -10/Materials | Entered Mines 275 | -10/Mines | Discovered new exit (range 9) 309 | -10/Mines | Build established: Mutant 382 | -10/Mines | Assembled infested the area 387 | -10/Mines | Assisted by a Guerilla fighting off Assembled 438 | -10/Mines | Core integrity fell below 50% 440 | -10/Mines | Core integrity fell below 20% 443 | -10/Mines | Destroyed by D-53 Grenadier with Mini Grenade Launcher Last Messages --------------- 00406_ D-53 Grenadier unfolds itself. 00406_ HV Slug penetrates as-83490. 00406_ as-83490 suffers critical hit. 00406_ as-83490 destroyed. 00408_ HV Slug penetrates as-33350. 00408_ Penetrated by HV Slug. 00408_ Knocked back. 00412_ as-33350 suffers critical hit. 00412_ as-33350 destroyed. 00423_ as-42527 suffers critical hit. 00423_ Destroyed Asb. Hover Unit. 00429_ as-42527 destroyed. 00429_ Switching to secondary target: as-11431. 00435_ Ion Engine destroyed. 00435_ as-01944 destroyed. 00435_ Lgt. Assault Rifle destroyed. 00439_ Wheel destroyed. 00439_ Grenade Launcher destroyed. 00441_ Lgt. Treads destroyed. 00443_ The unstable cave ceiling collapses. Map ----- +----------------------------------------------------+ | | | | | | | | | ??????????????????????????????? | | ??????????????????????????????? | | ??????????????????????????????? | | ??????????????????????????????? | | ??????????????????????????????? | | ??????????????????????????????? | | ??????????????????????????????? | | ??????????????????????????????? | | ??????????????????????????????? | | ??????????????????????????????? | | ??????????????????????????????? | | ??????????????????????????????? | | ??####????????????????????????? | | ?## ##???????????????????????? | | ?# #???????????????????????? | | ?? ???????????????????????? | | ??# ???????????????????????? | | ??# #???????????????????????? | | ??# ##??????????????????????? | | #### ##?????????????????????? | | # #?????????????????????? | | @ ##????????????????????? | | #????????????????????? | | ##???????????????????? | | #???????????????????? | | < ####????????????????? | | #????????????????? | | # #????????????????? | | # ####?????????????? | | #### a #????????? | | ???# d #######??????????? | | ???## d #????????????????? | | ???### # #????????????????? | | ???# # #######????????????????? | | ????#%%#??????????????????????? | | ????## #??????????????????????? | | ?????#%#####??????????????????? | | ?????#"% #??????????????????? | | ?????##### ########???????????? | | ?????????# #????? | | ????###### ########???????????? | | ????# #?????????????????? | | ????# #?????????????????? | | ????# #?????????????????? | | ????# #?????????????????? | | ????### ####?????????????????? | +----------------------------------------------------+ Best States ------------- Heat Dissipation 35 Energy Generation 10 Energy Capacity 250 Matter Stores 300 Matter Capacity 300 Sight Range 16 Terrain Scan Density 10 Power Shielding 33 Evasion (%) 44 Item Schematics ----------------- None Robot Schematics ------------------ None Fabricated ------------ Nothing Alien Tech Used ----------------- None Achievements -------------- None Challenges ------------ None Game ------ Seed TachyonPowerShifter Manual? 0 Play Time 00:06:15 Cumulative 387.2 hours Start 2019.11.05 @ 14:57:26 End 2019.11.05 @ 15:01:34 Sessions 1 Manual Loads 0 Difficulty Rogue Special Mode None Game No. 300 Rogue 292 Adventurer 4 Explorer 0 Win Type - Total 30 Types 24/2/1/1/2/0/0 Lore% 92 Gallery% 93 Achievement% 87 Wizard Run 0 Options --------- ASCII 0 Keyboard 0 Movement Vi Keybinds 0 Fullscreen 0 Font 16/Terminus Map View 76x50 Tactical HUD 1 Map Filters NONE Filters NONE Steam 1 RUN: 0da7d267-579b-4900-b2a2-b615fadb77c4